Workbook

Sheet BSAI Gfish Harvest Specs AP-SSC
A1: Table 1. Plan Team Proposed recommended OFL, ABC for Groundfish in the Bering Sea and Aleutian Islands (metric tons) for 2024-2025 | M1: 2023-09-14
C3: 2022 | F3: Catch as of | G3: 2023 | J3: Catch as of | K3: Plan Team Proposed 2024/2025 | N3: 2023 draft SAFE
A4: Species | B4: Area | C4: OFL | D4: ABC | E4: TAC | F4: 2022-12-31 | G4: OFL | H4: ABC | I4: TAC | J4: 2023-09-13 | K4: OFL | L4: ABC | M4: TAC | N4: OFL | O4: ABC | P4: TAC
A5: Pollock | B5: EBS | C5: 1,469,000 | D5: 1,111,000 | E5: 1,111,000 | F5: 1,105,677 | G5: 3,381,000 | H5: 1,910,000 | I5: 1,300,000 | J5: 1,250,856 | K5: 4,639,000 | L5: 2,275,000
B6: AI | C6: 61,264 | D6: 50,752 | E6: 19,000 | F6: 3,058 | G6: 52,383 | H6: 43,413 | I6: 19,000 | J6: 2,694 | K6: 52,043 | L6: 43,092
B7: Bogoslof | C7: 113,479 | D7: 85,109 | E7: 250 | F7: 259 | G7: 115,146 | H7: 86,360 | I7: 300 | J7: 117 | K7: 115,146 | L7: 86,360
A8: Pacific cod | B8: BS | C8: 183,012 | D8: 153,383 | E8: 136,466 | F8: 120,448 | G8: 172,495 | H8: 144,834 | I8: 127,409 | J8: 82,262 | K8: 166,814 | L8: 140,159
B9: AI | C9: 27,400 | D9: 20,600 | E9: 13,796 | F9: 6,450 | G9: 18,416 | H9: 13,812 | I9: 8,425 | J9: 2,763 | K9: 18,416 | L9: 13,812
B10: BSAI/GOA | C10: 40,432 | D10: 34,521 | E10: n/a | G10: 47,390 | H10: 40,502 | K10: 48,561 | L10: 41,539
A11: Sablefish | B11: BS | C11: n/a | D11: 5,264 | E11: 5,264 | F11: 5,514 | G11: n/a | H11: 8,417 | I11: 7,996 | J11: 4,796 | K11: n/a | L11: 10,185
B12: AI | C12: n/a | D12: 6,463 | E12: 6,463 | F12: 2,230 | G12: n/a | H12: 8,884 | I12: 8,440 | J12: 1,919 | K12: n/a | L12: 10,308
A13: Yellowfin sole | B13: BSAI | C13: 377,071 | D13: 354,014 | E13: 250,000 | F13: 154,253 | G13: 404,882 | H13: 378,499 | I13: 230,000 | J13: 71,967 | K13: 495,155 | L13: 462,890
A14: Greenland turbot | B14: BSAI | C14: 7,687 | D14: 6,572 | E14: 6,572 | F14: =SUM(F15:F16) -> 1,478 | G14: 4,645 | H14: 3,960 | I14: =I15+I16 -> 3,960 | J14: =SUM(J15:J16) -> 1,248 | K14: 3,947 | L14: 3,364
B15: BS | C15: n/a | D15: 5,540 | E15: 5,540 | F15: 1,038 | G15: n/a | H15: 3,338 | I15: 3,338 | J15: 771 | K15: n/a | L15: 2,836
B16: AI | C16: n/a | D16: 1,032 | E16: 1,032 | F16: 440 | G16: n/a | H16: 622 | I16: 622 | J16: 477 | K16: n/a | L16: 528
A17: Arrowtooth flounder | B17: BSAI | C17: 94,445 | D17: 80,389 | E17: 20,000 | F17: 7,857 | G17: 98,787 | H17: 83,852 | I17: 15,000 | J17: 5,910 | K17: 103,070 | L17: 87,511
A18: Kamchatka flounder | B18: BSAI | C18: 10,903 | D18: 9,214 | E18: 9,214 | F18: 8,369 | G18: 8,946 | H18: 7,579 | I18: 7,579 | J18: 6,753 | K18: 8,776 | L18: 7,435
A19: Northern rock sole | B19: BSAI | C19: 214,084 | D19: 206,896 | E19: 66,000 | F19: 18,399 | G19: 166,034 | H19: 121,719 | I19: 66,000 | J19: 22,833 | K19: 196,011 | L19: 119,969
A20: Flathead sole | B20: BSAI | C20: 77,967 | D20: 64,288 | E20: 35,500 | F20: 14,690 | G20: 79,256 | H20: 65,344 | I20: 35,500 | J20: 7,522 | K20: 81,167 | L20: 66,927
A21: Alaska plaice | B21: BSAI | C21: 39,305 | D21: 32,697 | E21: 29,221 | F21: 11,253 | G21: 40,823 | H21: 33,946 | I21: 17,500 | J21: 9,489 | K21: 43,328 | L21: 36,021
A22: Other flatfish | B22: BSAI | C22: 22,919 | D22: 17,189 | E22: 10,000 | F22: 2,559 | G22: 22,919 | H22: 17,189 | I22: 4,500 | J22: 2,874 | K22: 22,919 | L22: 17,189
A23: Pacific Ocean perch | B23: BSAI | C23: 42,605 | D23: 35,688 | E23: 35,385 | F23: =SUM(F24:F27) -> 34,782 | G23: 50,133 | H23: 42,038 | I23: =SUM(I24:I27) -> 37,703 | J23: =SUM(J24:J27) -> 29,580 | K23: 49,279 | L23: 41,322
B24: BS | C24: n/a | D24: 10,352 | E24: 10,352 | F24: 10,066 | G24: n/a | H24: 11,903 | I24: 11,903 | J24: 8,078 | K24: n/a | L24: 11,700
B25: EAI | C25: n/a | D25: 8,083 | E25: 8,083 | F25: 7,996 | G25: n/a | H25: 8,152 | I25: 8,152 | J25: 5,494 | K25: n/a | L25: 8,013
B26: CAI | C26: n/a | D26: 5,950 | E26: 5,950 | F26: 5,837 | G26: n/a | H26: 5,648 | I26: 5,648 | J26: 4,792 | K26: n/a | L26: 5,551
B27: WAI | C27: n/a | D27: 11,303 | E27: 11,000 | F27: 10,882 | G27: n/a | H27: 16,335 | I27: 12,000 | J27: 11,216 | K27: n/a | L27: 16,058
A28: Northern rockfish | B28: BSAI | C28: 23,420 | D28: 19,217 | E28: 17,000 | F28: 7,898 | G28: 22,776 | H28: 18,687 | I28: 11,000 | J28: 9,867 | K28: 22,105 | L28: 18,135
A29: Blackspotted/Rougheye Rockfish | B29: BSAI | C29: 598 | D29: 503 | E29: 503 | F29: =SUM(F30:F31) -> 455 | G29: 703 | H29: 525 | I29: =SUM(I30:I31) -> 525 | J29: =SUM(J30:J31) -> 489 | K29: 763 | L29: 570
B30: EBS/EAI | C30: n/a | D30: 326 | E30: 326 | F30: 204 | H30: 359 | I30: 359 | J30: 190 | K30: n/a | L30: 388
B31: CAI/WAI | C31: n/a | D31: 177 | E31: 177 | F31: 250 | H31: 166 | I31: 166 | J31: 299 | K31: n/a | L31: 182
A32: Shortraker rockfish | B32: BSAI | C32: 722 | D32: 541 | E32: 541 | F32: 284 | G32: 706 | H32: 530 | I32: 530 | J32: 199 | K32: 706 | L32: 530
A33: Other rockfish | B33: BSAI | C33: 1,751 | D33: 1,313 | E33: 1,144 | F33: =SUM(F34:F35) -> 1,308 | G33: 1,680 | H33: 1,260 | I33: =SUM(I34:I35) -> 1,260 | J33: =SUM(J34:J35) -> 1,034 | K33: 1,680 | L33: 1,260
B34: BS | C34: n/a | D34: 919 | E34: 750 | F34: 651 | H34: 880 | I34: 880 | J34: 576 | K34: n/a | L34: 880
B35: AI | C35: n/a | D35: 394 | E35: 394 | F35: 657 | H35: 380 | I35: 380 | J35: 458 | K35: n/a | L35: 380
A36: Atka mackerel | B36: BSAI | C36: 91,870 | D36: 78,510 | E36: 66,481 | F36: =SUM(F37:F39) -> 58,107 | G36: 118,787 | H36: 98,588 | I36: =SUM(I37:I39) -> 69,282 | J36: =SUM(J37:J39) -> 55,903 | K36: 101,188 | L36: 86,464
B37: EAI/BS | C37: n/a | D37: 27,260 | E37: 27,260 | F37: 19,138 | G37: n/a | H37: 43,281 | I37: 27,260 | J37: 15,369 | K37: n/a | L37: 37,958
B38: CAI | C38: n/a | D38: 16,880 | E38: 16,880 | F38: 16,761 | G38: n/a | H38: 17,351 | I38: 17,351 | J38: 16,601 | K38: n/a | L38: 15,218
B39: WAI | C39: n/a | D39: 34,370 | E39: 22,341 | F39: 22,208 | G39: n/a | H39: 37,956 | I39: 24,671 | J39: 23,932 | K39: n/a | L39: 33,288
A40: Skates | B40: BSAI | C40: 47,790 | D40: 39,958 | E40: 30,000 | F40: 29,236 | G40: 46,220 | H40: 38,605 | I40: 27,441 | J40: 20,205 | K40: 44,168 | L40: 36,837
A41: Sharks | B41: BSAI | C41: 689 | D41: 517 | E41: 500 | F41: 127 | G41: 689 | H41: 450 | I41: 250 | J41: 307 | K41: 689 | L41: 450
A42: Octopuses | B42: BSAI | C42: 4,769 | D42: 3,576 | E42: 700 | F42: 251 | G42: 4,769 | H42: 3,576 | I42: 400 | J42: 119 | K42: 4,769 | L42: 3,576
A43: Total | B43: BSAI | C43: =SUM(C5:C42) -> 2,953,182 | D43: =SUM(D5:D42)-D14-D23-D29-D33-D36-D10 -> 2,383,653 | E43: =SUM(E5:E42)-E14-E23-E29-E33-E36 -> 1,871,000 | F43: =SUM(F5:F42)-F14-F23-F29-F33-F36-F10 -> 1,594,941 | G43: =SUM(G5:G42) -> 4,859,585 | H43: =SUM(H5:H42)-H14-H23-H29-H33-H36-H11-H12 -> 3,155,268 | I43: =SUM(I5:I42)-I14-I23-I29-I33-I36 -> 2,000,000 | J43: =SUM(J5:J42)-J14-J23-J29-J33-J36-J10 -> 1,591,707 | K43: =SUM(K5:K42) -> 6,219,700 | L43: =SUM(L5:L42)-L14-L23-L29-L33-L36-L11-L12 -> 3,590,412
A44: Sources: 2022 OFLs, ABCs, and TACs and 2023 OFLs and ABCs are from harvest specifications adopted by the Council in December 2021 and December 2022 respectively; 2022 catches through December 31, and 2023 catches through September 13, 2023 from AKR Catch Accounting.
A46: Reallocations over specified TAC
A47: 2023 | B47: From | C47: To | D47: Difference | E47: Reason
A48: AI Pollock | B48: 14,500 | E48: Reallocate AI to BS
A49: BS Pollock | C49: 14,500

Sheet Notes
A6: Input to facilitate Plan Team discussions of appropriate proposed OFLs and ABCs at September plan team meetings.
A7: Spreadsheets for the BSAI and GOA with information on 2024 and 2025 OFLs, ABCs and TACs as adopted by published in the Federal Register in March 2023 and March 2019.
A8: To be completed in September with actual catches through December 31, 2022 and September 13, 2023 as published by SF to web site.
A12: Comments: Steve Whitney, 907-586-7269, steven.whitney@noaa.gov
